[Event "RUS-chT Women Rapid 2019"]
[Site "Sochi"]
[Date "2019.10.18"]
[Round "2.2"]
[White "Girya, Olga"]
[Black "Ovod, Evgenija"]
[Result "0-1"]
[ECO "D55"]
[WhiteElo "2476"]
[BlackElo "2347"]
[Annotator "ChessBase"]
[PlyCount "106"]
[EventDate "2019.10.18"]
[EventType "swiss"]
[EventCountry "RUS"]
[SourceTitle "playchess.com"]
[Source "ChessBase"]
[SourceQuality "1"]
[TimeControl "900+10"]

1. d4 {[%emt 0:00:00]} d5 {[%emt 0:00:00]} 2. c4 {[%emt 0:00:00]} e6 {[%emt 0:00:00]} 3. Nf3 {[%emt 0:00:00]} Nf6 {[%emt 0:00:00]} 4. Bg5 {[%emt 0:00:02]} Be7 {[%emt 0:00:02]} 5. e3 {[%emt 0:00:02]} O-O {[%emt 0:00:11]} 6. Nc3 {[%emt 0:00:05]} h6 {[%emt 0:00:10]} 7. Bxf6 {[%emt 0:00:08]} Bxf6 {[%emt 0:00:03]} 8. Rc1 {[%emt 0:00:02]} b6 {[%emt 0:00:17]} 9. cxd5 {[%emt 0:00:31]} exd5 {[%emt 0:00:02]} 10. Qb3 {[%emt 0:00:17]} Be6 {[%emt 0:00:15]} 11. Be2 {[%emt 0:00:13]} c5 {[%emt 0:01:39]} 12. O-O {[%emt 0:00:02]} Nc6 {[%emt 0:01:35]} 13. Qa4 {[%emt 0:00:25]} cxd4 {[%emt 0:03:31]} 14. exd4 {[%emt 0:00:01]} Ne7 {[%emt 0:00:13]} 15. Ne5 {[%emt 0:01:15]} Ng6 {[%emt 0:03:01]} 16. Nxg6 {[%emt 0:02:21]} fxg6 {[%emt 0:00:02]} 17. Qc6 {[%emt 0:02:22]} Bf7 {[%emt 0:01:14]} 18. Rcd1 {[%emt 0:00:01]} Rc8 {[%emt 0:01:00]} 19. Qb5 {[%emt 0:00:26]} Qd6 {[%emt 0:00:23]} 20. Bf3 {[%emt 0:00:28]} Rfd8 {[%emt 0:00:09]} 21. Rfe1 {[%emt 0:00:02]} Rc4 {[%emt 0:00:32]} 22. Nxd5 {[%emt 0:03:54]} Bxd5 {[%emt 0:00:31]} 23. Re8+ {[%emt 0:00:04]} Kh7 {[%emt 0:00:04]} 24. Rxd8 {[%emt 0:00:31]} Qxd8 {[%emt 0:00:03]} 25. Bxd5 {[%emt 0:02:45]} Rxd4 {[%emt 0:00:02]} 26. Rxd4 {[%emt 0:00:03]} Bxd4 {[%emt 0:00:01]} 27. b3 {[%emt 0:00:32]} Qg5 {[%emt 0:01:24]} 28. g3 {[%emt 0:02:44]} Qd2 {[%emt 0:00:28]} 29. Qf1 {[%emt 0:00:02]} Bxf2+ {[%emt 0:00:52]} 30. Qxf2 {[%emt 0:00:01]} Qxd5 {[%emt 0:00:01]} 31. Qe2 {[%emt 0:00:01]} a5 {[%emt 0:00:17]} 32. h4 {[%emt 0:00:23]} b5 {[%emt 0:00:10]} 33. Qc2 {[%emt 0:00:25]} Qf5 {[%emt 0:00:18]} 34. Qd1 {[%emt 0:00:06]} b4 {[%emt 0:00:25]} 35. Qe2 {[%emt 0:00:12]} g5 {[%emt 0:00:22]} 36. hxg5 {[%emt 0:00:19]} Qxg5 {[%emt 0:00:02]} 37. Kg2 {[%emt 0:00:02]} h5 {[%emt 0:00:11]} 38. Qd3+ {[%emt 0:00:08]} g6 {[%emt 0:00:37]} 39. Qd7+ {[%emt 0:00:09]} Kh6 {[%emt 0:00:04]} 40. Qd4 {[%emt 0:00:01]} Qe7 {[%emt 0:00:25]} 41. Qh8+ {[%emt 0:00:16]} Kg5 {[%emt 0:00:03]} 42. Qd4 {[%emt 0:00:18]} Qe2+ {[%emt 0:00:09]} 43. Kg1 {[%emt 0:00:02]} Qe1+ {[%emt 0:00:51]} 44. Kg2 {[%emt 0:00:04]} Qe2+ {[%emt 0:00:06]} 45. Kg1 {[%emt 0:00:01]} Kf5 {[%emt 0:00:19]} 46. Qd7+ {[%emt 0:00:38]} Ke4 {[%emt 0:00:18]} 47. Qe6+ {[%emt 0:00:03]} Kf3 {[%emt 0:00:03]} 48. Qf6+ {[%emt 0:00:17]} Kxg3 {[%emt 0:00:02]} 49. Qxg6+ {[%emt 0:00:06]} Kh3 {[%emt 0:00:10]} 50. Qf5+ {[%emt 0:00:18]} Qg4+ {[%emt 0:00:03]} 51. Qxg4+ {[%emt 0:00:04]} hxg4 {[%emt 0:00:04]} 52. Kh1 {[%emt 0:00:02]} g3 {[%emt 0:00:05]} 53. Kg1 {[%emt 0:00:01]} g2 {[%emt 0:00:01]} 0-1

[Event "RUS-chT Women Rapid 2019"]
[Site "Sochi"]
[Date "2019.10.18"]
[Round "2.4"]
[White "Kovanova, Baira"]
[Black "Styazhkina, Anna"]
[Result "0-1"]
[ECO "A06"]
[WhiteElo "2344"]
[BlackElo "2280"]
[Annotator "NA"]
[PlyCount "70"]
[EventDate "2019.10.18"]
[EventType "swiss"]
[EventCountry "RUS"]
[SourceTitle "playchess.com"]
[Source "ChessBase"]
[SourceQuality "1"]
[TimeControl "900+10"]

1. Nf3 {[%emt 0:00:00]} d5 {[%emt 0:00:00]} 2. g3 {[%emt 0:00:00]} c6 {[%emt 0:00:00]} 3. Bg2 {[%emt 0:00:00]} Bg4 {[%emt 0:00:03]} 4. O-O {[%emt 0:00:17]} Nd7 {[%emt 0:00:02]} 5. d3 {[%emt 0:00:02]} e6 {[%emt 0:00:08]} 6. Nbd2 {[%emt 0:00:03]} Bd6 {[%emt 0:00:03]} 7. e4 {[%emt 0:00:10]} Ne7 {[%emt 0:00:02]} 8. h3 {[%emt 0:00:07]} Bh5 {[%emt 0:00:33]} 9. b3 {[%emt 0:01:03]} O-O {[%emt 0:00:16]} 10. Bb2 {[%emt 0:00:02]} f5 {[%emt 0:00:34]} 11. Qe1 {[%emt 0:02:05]} Nc5 {[%emt 0:05:24]} 12. Nd4 {[%emt 0:04:10]} Qd7 {[%emt 0:00:58]} 13. e5 {[%emt 0:00:22]} Bc7 {[%emt 0:00:25]} 14. f4 {[%emt 0:00:02]} Na6 {[%emt 0:01:01]} 15. a4 {[%emt 0:01:14]} Nb4 {[%emt 0:00:24]} 16. Rc1 {[%emt 0:00:13]} a6 {[%emt 0:01:00]} 17. N4f3 {[%emt 0:02:02]} c5 {[%emt 0:00:36]} 18. d4 {[%emt 0:00:01]} Bb6 {[%emt 0:00:17]} 19. Qe3 {[%emt 0:00:46]} Rac8 {[%emt 0:00:44]} 20. c3 {[%emt 0:00:04]} cxd4 {[%emt 0:00:06]} 21. Nxd4 {[%emt 0:00:29]} Nbc6 {[%emt 0:00:42]} 22. N2f3 {[%emt 0:01:29]} Na5 {[%emt 0:00:26]} 23. Nd2 {[%emt 0:00:12]} Nec6 {[%emt 0:02:00]} 24. Kh2 {[%emt 0:00:05]} Nxd4 {[%emt 0:00:56]} 25. cxd4 {[%emt 0:00:02]} Qe7 {[%emt 0:01:30]} 26. Bc3 {[%emt 0:02:59]} Nc6 {[%emt 0:00:11]} 27. Rb1 {[%emt 0:01:01]} Nb4 {[%emt 0:00:19]} 28. Bb2 {[%emt 0:00:18]} Rc2 {[%emt 0:00:14]} 29. Ba3 {[%emt 0:00:14]} Rfc8 {[%emt 0:00:08]} 30. Rfc1 {[%emt 0:00:06]} a5 {[%emt 0:00:21]} 31. Rxc2 {[%emt 0:00:05]} Rxc2 {[%emt 0:00:04]} 32. Rc1 {[%emt 0:00:04]} Rxc1 {[%emt 0:00:11]} 33. Bxc1 {[%emt 0:00:02]} Qc7 {[%emt 0:00:02]} 34. Bb2 {[%emt 0:00:06]} Qc2 {[%emt 0:00:24]} 35. Bf1 {[%emt 0:00:09]} Qxb2 {[%emt 0:00:11]} 0-1

[Event "RUS-chT Women Rapid 2019"]
[Site "Sochi"]
[Date "2019.10.18"]
[Round "2.5"]
[White "Gunina, Valentina"]
[Black "Badelka, Olga"]
[Result "0-1"]
[ECO "D37"]
[WhiteElo "2509"]
[BlackElo "2413"]
[Annotator "ChessBase"]
[PlyCount "112"]
[EventDate "2019.10.18"]
[EventType "swiss"]
[EventCountry "RUS"]
[SourceTitle "playchess.com"]
[Source "ChessBase"]
[SourceQuality "1"]
[TimeControl "900+10"]

1. d4 {[%emt 0:00:00]} Nf6 {[%emt 0:00:00]} 2. c4 {[%emt 0:00:00]} e6 {[%emt 0:00:00]} 3. Nf3 {[%emt 0:00:00]} d5 {[%emt 0:00:00]} 4. Nc3 {[%emt 0:00:00]} dxc4 {[%emt 0:00:00]} 5. e3 {[%emt 0:00:04]} a6 {[%emt 0:00:04]} 6. a4 {[%emt 0:00:20]} c5 {[%emt 0:00:12]} 7. Bxc4 {[%emt 0:00:02]} Nc6 {[%emt 0:00:03]} 8. O-O {[%emt 0:00:03]} cxd4 {[%emt 0:00:08]} 9. exd4 {[%emt 0:00:03]} Be7 {[%emt 0:00:06]} 10. Re1 {[%emt 0:00:15]} O-O {[%emt 0:00:38]} 11. Bf4 {[%emt 0:00:03]} Nb4 {[%emt 0:00:51]} 12. Ne5 {[%emt 0:00:15]} Nbd5 {[%emt 0:00:09]} 13. Bg3 {[%emt 0:00:21]} Bd7 {[%emt 0:01:35]} 14. Rc1 {[%emt 0:01:07]} Rc8 {[%emt 0:00:27]} 15. Bd3 {[%emt 0:00:09]} Bc6 {[%emt 0:01:33]} 16. Bb1 {[%emt 0:00:49]} Nxc3 {[%emt 0:00:22]} 17. bxc3 {[%emt 0:00:03]} Ba3 {[%emt 0:00:53]} 18. Nxc6 {[%emt 0:00:20]} Rxc6 {[%emt 0:00:10]} 19. Rc2 {[%emt 0:00:02]} Qa5 {[%emt 0:05:19]} 20. c4 {[%emt 0:03:50]} Rd8 {[%emt 0:00:43]} 21. Be5 {[%emt 0:00:47]} Nd7 {[%emt 0:01:45]} 22. Bf4 {[%emt 0:01:30]} Nf6 {[%emt 0:01:12]} 23. Be5 {[%emt 0:00:02]} Nd7 {[%emt 0:00:01]} 24. Rce2 {[%emt 0:00:43]} Bb4 {[%emt 0:00:42]} 25. Qc2 {[%emt 0:02:54]} g6 {[%emt 0:00:01]} 26. Rd1 {[%emt 0:00:03]} Nxe5 {[%emt 0:00:19]} 27. Rxe5 {[%emt 0:00:13]} Qc7 {[%emt 0:00:01]} 28. c5 {[%emt 0:02:24]} Rxd4 {[%emt 0:00:09]} 29. Rxd4 {[%emt 0:00:30]} Qxe5 {[%emt 0:00:01]} 30. Rd8+ {[%emt 0:00:26]} Kg7 {[%emt 0:00:02]} 31. g3 {[%emt 0:00:19]} Rxc5 {[%emt 0:00:26]} 32. Qb3 {[%emt 0:00:31]} a5 {[%emt 0:01:28]} 33. Kg2 {[%emt 0:00:07]} Rc3 {[%emt 0:00:09]} 34. Qd1 {[%emt 0:00:07]} Bc5 {[%emt 0:00:23]} 35. Rd7 {[%emt 0:00:22]} Qf6 {[%emt 0:00:26]} 36. f4 {[%emt 0:00:18]} b6 {[%emt 0:00:14]} 37. Kh1 {[%emt 0:00:48]} Ba3 {[%emt 0:00:01]} 38. Kg2 {[%emt 0:00:21]} Rc1 {[%emt 0:00:03]} 39. Qb3 {[%emt 0:00:09]} Qb2+ {[%emt 0:00:36]} 40. Qxb2+ {[%emt 0:00:02]} Bxb2 {[%emt 0:00:01]} 41. Bd3 {[%emt 0:00:03]} Ba3 {[%emt 0:00:13]} 42. Bb5 {[%emt 0:00:24]} Rc2+ {[%emt 0:00:03]} 43. Kf3 {[%emt 0:00:28]} Rxh2 {[%emt 0:00:05]} 44. Rb7 {[%emt 0:00:09]} Bc5 {[%emt 0:00:30]} 45. Be8 {[%emt 0:00:09]} Rf2+ {[%emt 0:00:01]} 46. Kg4 {[%emt 0:00:15]} h5+ {[%emt 0:00:17]} 47. Kg5 {[%emt 0:00:32]} Rg2 {[%emt 0:00:11]} 48. Rxf7+ {[%emt 0:00:06]} Kg8 {[%emt 0:00:01]} 49. Rd7 {[%emt 0:00:26]} Kf8 {[%emt 0:00:13]} 50. Bxg6 {[%emt 0:00:03]} Rxg3+ {[%emt 0:00:02]} 51. Kf6 {[%emt 0:00:01]} Be7+ {[%emt 0:00:07]} 52. Rxe7 {[%emt 0:00:18]} Rxg6+ {[%emt 0:00:01]} 53. Kxg6 {[%emt 0:00:01]} Kxe7 {[%emt 0:00:00]} 54. Kxh5 {[%emt 0:00:01]} b5 {[%emt 0:00:29]} 55. axb5 {[%emt 0:00:03]} a4 {[%emt 0:00:02]} 56. b6 {[%emt 0:00:02]} Kd6 {[%emt 0:00:01]} 0-1

[Event "RUS-chT Women Rapid 2019"]
[Site "Sochi"]
[Date "2019.10.18"]
[Round "2.6"]
[White "Sukhareva, Evgeniya"]
[Black "Bivol, Alina"]
[Result "1-0"]
[ECO "E71"]
[WhiteElo "2122"]
[BlackElo "2371"]
[Annotator "NA"]
[PlyCount "93"]
[EventDate "2019.10.18"]
[EventType "swiss"]
[EventCountry "RUS"]
[SourceTitle "playchess.com"]
[Source "ChessBase"]
[SourceQuality "1"]
[TimeControl "900+10"]

1. d4 {[%emt 0:00:00]} Nf6 {[%emt 0:00:00]} 2. c4 {[%emt 0:00:00]} g6 {[%emt 0:00:00]} 3. Nc3 {[%emt 0:00:00]} Bg7 {[%emt 0:00:00]} 4. e4 {[%emt 0:00:09]} d6 {[%emt 0:00:00]} 5. h3 {[%emt 0:00:32]} O-O {[%emt 0:00:06]} 6. Bd3 {[%emt 0:00:26]} e5 {[%emt 0:01:11]} 7. d5 {[%emt 0:00:06]} a5 {[%emt 0:00:02]} 8. Nge2 {[%emt 0:00:11]} Na6 {[%emt 0:00:04]} 9. g4 {[%emt 0:00:08]} Nc5 {[%emt 0:00:19]} 10. Ng3 {[%emt 0:00:59]} Nxd3+ {[%emt 0:01:26]} 11. Qxd3 {[%emt 0:00:01]} c6 {[%emt 0:00:47]} 12. Be3 {[%emt 0:01:05]} cxd5 {[%emt 0:00:10]} 13. cxd5 {[%emt 0:00:07]} b6 {[%emt 0:00:20]} 14. a4 {[%emt 0:03:58]} Ba6 {[%emt 0:00:03]} 15. Nb5 {[%emt 0:00:21]} Nd7 {[%emt 0:00:01]} 16. Ne2 {[%emt 0:03:36]} Nc5 {[%emt 0:00:05]} 17. Qc2 {[%emt 0:00:04]} Rc8 {[%emt 0:00:11]} 18. Nec3 {[%emt 0:00:05]} Qd7 {[%emt 0:00:36]} 19. g5 {[%emt 0:00:47]} f5 {[%emt 0:00:43]} 20. gxf6 {[%emt 0:00:18]} Rxf6 {[%emt 0:00:04]} 21. Kd2 {[%emt 0:02:58]} Bh6 {[%emt 0:02:00]} 22. Rh2 {[%emt 0:02:09]} Bf4 {[%emt 0:00:49]} 23. Rah1 {[%emt 0:00:37]} Bxh2 {[%emt 0:02:24]} 24. Rxh2 {[%emt 0:00:00]} Rf3 {[%emt 0:00:29]} 25. Qd1 {[%emt 0:00:08]} Rcf8 {[%emt 0:00:10]} 26. Kc1 {[%emt 0:00:19]} Bxb5 {[%emt 0:00:13]} 27. axb5 {[%emt 0:00:07]} a4 {[%emt 0:01:07]} 28. h4 {[%emt 0:00:07]} Nb3+ {[%emt 0:00:29]} 29. Kb1 {[%emt 0:00:01]} Rxe3 {[%emt 0:00:08]} 30. fxe3 {[%emt 0:00:29]} Rf1 {[%emt 0:00:01]} 31. Qxf1 {[%emt 0:00:06]} Qg4 {[%emt 0:00:45]} 32. Rf2 {[%emt 0:00:09]} Qxh4 {[%emt 0:00:20]} 33. Rf8+ {[%emt 0:00:14]} Kg7 {[%emt 0:00:02]} 34. Rf2 {[%emt 0:00:03]} Kg8 {[%emt 0:00:30]} 35. Ka2 {[%emt 0:00:02]} Qd8 {[%emt 0:01:05]} 36. Nxa4 {[%emt 0:00:10]} Na5 {[%emt 0:00:00]} 37. Nc3 {[%emt 0:00:10]} Qa8 {[%emt 0:00:03]} 38. Na4 {[%emt 0:00:16]} Nb7 {[%emt 0:00:08]} 39. b3 {[%emt 0:00:10]} Nc5 {[%emt 0:00:01]} 40. Qc4 {[%emt 0:00:03]} Qa5 {[%emt 0:00:08]} 41. Qc3 {[%emt 0:00:23]} Qa7 {[%emt 0:00:14]} 42. Ka3 {[%emt 0:00:07]} Kg7 {[%emt 0:00:18]} 43. Qc2 {[%emt 0:00:05]} h5 44. Rf1 {[%emt 0:00:10]} Qa5 {[%emt 0:00:42]} 45. Qf2 {[%emt 0:00:08]} Qa8 {[%emt 0:01:00]} 46. Qf7+ {[%emt 0:00:02]} Kh6 {[%emt 0:00:01]} 47. Rg1 {[%emt 0:00:02]} 1-0

[Event "RUS-chT Women Rapid 2019"]
[Site "Sochi"]
[Date "2019.10.18"]
[Round "2.7"]
[White "Maltsevskaya, Aleksandra"]
[Black "Dumcheva, Julia"]
[Result "1-0"]
[ECO "B90"]
[WhiteElo "2333"]
[BlackElo "2168"]
[Annotator "NA"]
[PlyCount "61"]
[EventDate "2019.10.18"]
[EventType "swiss"]
[EventCountry "RUS"]
[SourceTitle "playchess.com"]
[Source "ChessBase"]
[SourceQuality "1"]
[TimeControl "900+10"]

1. e4 {[%emt 0:00:00]} c5 {[%emt 0:00:00]} 2. Nf3 {[%emt 0:00:00]} d6 {[%emt 0:00:00]} 3. d4 {[%emt 0:00:00]} cxd4 {[%emt 0:00:00]} 4. Nxd4 {[%emt 0:00:00]} Nf6 {[%emt 0:00:00]} 5. Nc3 {[%emt 0:00:05]} a6 {[%emt 0:00:03]} 6. h3 {[%emt 0:01:17]} e6 {[%emt 0:01:08]} 7. g4 {[%emt 0:00:05]} Nc6 {[%emt 0:00:20]} 8. Bg2 {[%emt 0:00:07]} Be7 {[%emt 0:01:37]} 9. Be3 {[%emt 0:00:09]} Ne5 {[%emt 0:00:15]} 10. Qe2 {[%emt 0:00:04]} Qc7 {[%emt 0:01:24]} 11. O-O {[%emt 0:03:46]} Bd7 {[%emt 0:01:52]} 12. Rad1 {[%emt 0:00:28]} Nc4 {[%emt 0:01:43]} 13. Bc1 {[%emt 0:00:08]} O-O-O {[%emt 0:01:03]} 14. g5 {[%emt 0:00:27]} Ne8 {[%emt 0:00:14]} 15. Nf5 {[%emt 0:00:16]} Bf8 {[%emt 0:00:27]} 16. Ne3 {[%emt 0:00:04]} Nxe3 {[%emt 0:00:51]} 17. Bxe3 {[%emt 0:00:03]} f6 {[%emt 0:00:54]} 18. f4 {[%emt 0:00:12]} Bc6 {[%emt 0:00:51]} 19. f5 {[%emt 0:05:08]} exf5 {[%emt 0:00:53]} 20. exf5 {[%emt 0:00:29]} Bxg2 {[%emt 0:00:48]} 21. Qxg2 {[%emt 0:00:03]} Qc6 {[%emt 0:00:16]} 22. Nd5 {[%emt 0:00:46]} Nc7 {[%emt 0:01:34]} 23. c4 {[%emt 0:00:06]} Nxd5 {[%emt 0:00:26]} 24. cxd5 {[%emt 0:00:40]} Qb5 {[%emt 0:00:11]} 25. Rc1+ {[%emt 0:00:58]} Kb8 {[%emt 0:00:22]} 26. Qc2 {[%emt 0:00:34]} Qd7 {[%emt 0:01:18]} 27. Qc3 {[%emt 0:00:49]} Be7 {[%emt 0:00:21]} 28. Qd4 {[%emt 0:00:04]} b5 {[%emt 0:00:12]} 29. Rc6 {[%emt 0:00:02]} Rc8 {[%emt 0:00:21]} 30. Rb6+ {[%emt 0:00:33]} Kc7 {[%emt 0:00:13]} 31. Rb7+ {[%emt 0:00:04]} 1-0

[Event "RUS-chT Women Rapid 2019"]
[Site "Sochi"]
[Date "2019.10.18"]
[Round "2.8"]
[White "Trapeznikova, Darya"]
[Black "Gvanceladze, Anna"]
[Result "0-1"]
[ECO "A06"]
[WhiteElo "2065"]
[BlackElo "2270"]
[Annotator "NA"]
[PlyCount "92"]
[EventDate "2019.10.18"]
[EventType "swiss"]
[EventCountry "RUS"]
[SourceTitle "playchess.com"]
[Source "ChessBase"]
[SourceQuality "1"]
[TimeControl "900+10"]

1. Nf3 {[%emt 0:00:00]} d5 {[%emt 0:00:00]} 2. e3 {[%emt 0:00:00]} Nf6 {[%emt 0:00:00]} 3. c4 {[%emt 0:00:00]} c6 {[%emt 0:00:00]} 4. Nc3 {[%emt 0:00:01]} g6 {[%emt 0:00:16]} 5. d4 {[%emt 0:00:25]} Bg7 {[%emt 0:00:04]} 6. Bd3 {[%emt 0:01:00]} O-O {[%emt 0:00:07]} 7. b3 {[%emt 0:00:21]} Bg4 {[%emt 0:01:05]} 8. h3 {[%emt 0:01:35]} Bxf3 {[%emt 0:00:04]} 9. Qxf3 {[%emt 0:00:02]} e6 {[%emt 0:00:02]} 10. O-O {[%emt 0:00:26]} Nbd7 {[%emt 0:00:02]} 11. Bb2 {[%emt 0:03:04]} Re8 {[%emt 0:00:03]} 12. cxd5 {[%emt 0:03:31]} exd5 {[%emt 0:00:06]} 13. b4 {[%emt 0:00:18]} a6 {[%emt 0:04:07]} 14. a4 {[%emt 0:00:25]} b5 {[%emt 0:01:54]} 15. axb5 {[%emt 0:00:08]} axb5 {[%emt 0:00:02]} 16. Rxa8 {[%emt 0:00:29]} Qxa8 {[%emt 0:00:01]} 17. Ra1 {[%emt 0:00:18]} Qb7 {[%emt 0:00:11]} 18. e4 {[%emt 0:00:22]} Nb6 {[%emt 0:00:43]} 19. e5 {[%emt 0:01:16]} Nfd7 {[%emt 0:00:03]} 20. Bc1 {[%emt 0:00:11]} Nf8 {[%emt 0:01:44]} 21. Ne2 {[%emt 0:00:25]} Ra8 {[%emt 0:01:53]} 22. Rb1 {[%emt 0:00:30]} Ne6 {[%emt 0:00:18]} 23. h4 {[%emt 0:00:17]} Qe7 {[%emt 0:00:58]} 24. h5 {[%emt 0:00:38]} Qh4 {[%emt 0:00:24]} 25. hxg6 {[%emt 0:00:10]} hxg6 {[%emt 0:00:01]} 26. Nf4 {[%emt 0:00:46]} Nxf4 {[%emt 0:01:04]} 27. Bxf4 {[%emt 0:00:01]} Ra3 {[%emt 0:00:10]} 28. g3 {[%emt 0:01:34]} Qh3 {[%emt 0:00:30]} 29. Qe2 {[%emt 0:00:08]} Qe6 {[%emt 0:01:25]} 30. Bc1 {[%emt 0:00:38]} Ra4 {[%emt 0:00:10]} 31. Qc2 {[%emt 0:00:23]} Nc4 {[%emt 0:00:03]} 32. Kg2 {[%emt 0:00:29]} Bf8 {[%emt 0:00:12]} 33. Bxc4 {[%emt 0:00:03]} dxc4 {[%emt 0:00:01]} 34. Qc3 {[%emt 0:00:12]} Qf5 {[%emt 0:00:22]} 35. Ra1 {[%emt 0:00:27]} Qe4+ {[%emt 0:00:28]} 36. Kh2 {[%emt 0:00:06]} Bxb4 {[%emt 0:00:24]} 37. Qb2 {[%emt 0:00:01]} Rxa1 {[%emt 0:00:47]} 38. Qxa1 {[%emt 0:00:02]} c3 {[%emt 0:00:47]} 39. Be3 {[%emt 0:00:15]} Kg7 {[%emt 0:00:11]} 40. Qc1 {[%emt 0:00:26]} Qf5 {[%emt 0:00:27]} 41. Kg2 {[%emt 0:00:14]} c2 {[%emt 0:00:10]} 42. Bg5 {[%emt 0:00:08]} Bf8 {[%emt 0:00:21]} 43. Bf6+ {[%emt 0:00:14]} Kg8 {[%emt 0:00:01]} 44. Qh1 {[%emt 0:00:02]} Bg7 {[%emt 0:00:03]} 45. Be7 {[%emt 0:00:17]} Qe4+ {[%emt 0:00:02]} 46. f3 {[%emt 0:00:02]} Qxd4 {[%emt 0:00:14]} 0-1

[Event "RUS-chT Women Rapid 2019"]
[Site "Sochi"]
[Date "2019.10.18"]
[Round "2.9"]
[White "Ambartsumova, Karina"]
[Black "Tomilova, Elena"]
[Result "1/2-1/2"]
[ECO "A28"]
[WhiteElo "2341"]
[BlackElo "2345"]
[Annotator "NA RC"]
[PlyCount "131"]
[EventDate "2019.10.18"]
[EventType "swiss"]
[EventCountry "RUS"]
[SourceTitle "playchess.com"]
[Source "ChessBase"]
[SourceQuality "1"]
[TimeControl "900+10"]

1. c4 {[%emt 0:00:00]} e5 {[%emt 0:00:00]} 2. Nc3 {[%emt 0:00:00]} Nf6 {[%emt 0:00:00]} 3. Nf3 {[%emt 0:00:00]} Nc6 {[%emt 0:00:00]} 4. a3 {[%emt 0:00:04]} d5 {[%emt 0:00:09]} 5. cxd5 {[%emt 0:00:02]} Nxd5 {[%emt 0:00:01]} 6. Qc2 {[%emt 0:00:01]} Be7 {[%emt 0:00:20]} 7. e3 {[%emt 0:00:28]} O-O {[%emt 0:00:49]} 8. Nxd5 {[%emt 0:01:28]} Qxd5 {[%emt 0:00:01]} 9. Bc4 {[%emt 0:00:01]} Qd6 {[%emt 0:00:33]} 10. b4 {[%emt 0:01:00]} Bf6 {[%emt 0:00:36]} 11. Rb1 {[%emt 0:01:52]} Bg4 {[%emt 0:00:13]} 12. Bb2 {[%emt 0:02:04]} Rfe8 {[%emt 0:00:44]} 13. d3 {[%emt 0:01:57]} Rad8 {[%emt 0:00:46]} 14. Nd2 {[%emt 0:00:30]} Bf5 {[%emt 0:05:40]} 15. Ne4 {[%emt 0:00:19]} Bxe4 {[%emt 0:00:10]} 16. dxe4 {[%emt 0:00:01]} a6 {[%emt 0:00:24]} 17. O-O {[%emt 0:00:39]} Qe7 {[%emt 0:01:31]} 18. Bc3 {[%emt 0:01:39]} b5 {[%emt 0:00:18]} 19. Bd5 {[%emt 0:00:33]} Nb8 {[%emt 0:00:07]} 20. Bb2 {[%emt 0:00:22]} c6 {[%emt 0:00:10]} 21. Bb3 {[%emt 0:00:38]} Rc8 {[%emt 0:00:18]} 22. Rfd1 {[%emt 0:00:30]} Nd7 {[%emt 0:00:25]} 23. Rbc1 {[%emt 0:00:56]} c5 {[%emt 0:00:54]} 24. bxc5 {[%emt 0:00:09]} Rxc5 {[%emt 0:00:25]} 25. Qd2 {[%emt 0:01:26]} Rxc1 {[%emt 0:00:03]} 26. Bxc1 {[%emt 0:00:45]} Nb6 {[%emt 0:01:03]} 27. Qd6 {[%emt 0:00:34]} Qxd6 {[%emt 0:00:19]} 28. Rxd6 {[%emt 0:00:02]} Rb8 {[%emt 0:00:08]} 29. f3 {[%emt 0:00:53]} Kf8 {[%emt 0:00:09]} 30. Kf2 {[%emt 0:00:24]} Ke8 {[%emt 0:00:22]} 31. f4 {[%emt 0:00:18]} Be7 {[%emt 0:00:29]} 32. Rc6 {[%emt 0:00:04]} Kd7 {[%emt 0:00:22]} 33. Rc2 {[%emt 0:00:01]} f6 {[%emt 0:00:25]} 34. Bb2 {[%emt 0:00:02]} Bd6 {[%emt 0:00:23]} 35. Kf3 {[%emt 0:00:01]} Nc4 {[%emt 0:00:29]} 36. Bxc4 {[%emt 0:00:23]} bxc4 {[%emt 0:00:01]} 37. Bc1 {[%emt 0:00:02]} Rc8 {[%emt 0:00:09]} 38. Bb2 {[%emt 0:00:09]} a5 {[%emt 0:00:16]} 39. a4 {[%emt 0:00:22]} Ke6 {[%emt 0:00:08]} 40. Bc3 {[%emt 0:00:08]} Bb4 {[%emt 0:00:04]} 41. Rc1 {[%emt 0:00:32]} Bxc3 {[%emt 0:00:10]} 42. Rxc3 {[%emt 0:00:00]} Kd6 {[%emt 0:00:04]} 43. Rc1 {[%emt 0:00:06]} Kc5 {[%emt 0:00:05]} 44. Rb1 {[%emt 0:00:03]} c3 {[%emt 0:00:06]} 45. Ke2 {[%emt 0:00:24]} c2 {[%emt 0:00:20]} 46. Rf1 {[%emt 0:00:29]} Kb4 {[%emt 0:00:20]} 47. Kd2 {[%emt 0:00:01]} Kxa4 {[%emt 0:00:10]} 48. Kc1 {[%emt 0:00:04]} Kb3 {[%emt 0:00:27]} 49. fxe5 {[%emt 0:00:02]} Kc3 {[%emt 0:00:12]} 50. Rf2 {[%emt 0:00:10]} Kd3 {[%emt 0:00:08]} 51. exf6 {[%emt 0:00:16]} gxf6 {[%emt 0:00:07]} 52. Rxf6 {[%emt 0:00:10]} Kxe4 {[%emt 0:00:41]} 53. Re6+ {[%emt 0:00:11]} Kd3 {[%emt 0:00:07]} 54. e4 {[%emt 0:00:19]} a4 {[%emt 0:00:12]} 55. Ra6 {[%emt 0:00:04]} Rc4 {[%emt 0:00:20]} 56. e5 {[%emt 0:00:05]} Kc3 {[%emt 0:00:30]} 57. e6 {[%emt 0:00:09]} Re4 {[%emt 0:00:14]} 58. Rc6+ {[%emt 0:00:04]} Kd3 {[%emt 0:00:10]} 59. Rd6+ {[%emt 0:00:09]} Kc3 {[%emt 0:00:10]} 60. Rc6+ {[%emt 0:00:01]} Kb3 {[%emt 0:00:08]} 61. Rb6+ {[%emt 0:00:03]} Kc3 {[%emt 0:00:06]} 62. Rc6+ {[%emt 0:00:03]} Kd3 {[%emt 0:00:09]} 63. Rd6+ {[%emt 0:00:01]} Kc3 {[%emt 0:00:00]} 64. Rc6+ {[%emt 0:00:01]} Kb3 {[%emt 0:00:21]} 65. Rb6+ {[%emt 0:00:07]} Kc3 {[%emt 0:00:00]} 66. Rc6+ 1/2-1/2

[Event "RUS-chT Women Rapid 2019"]
[Site "Sochi"]
[Date "2019.10.18"]
[Round "2.10"]
[White "Gritsayeva, Oksana"]
[Black "Shafigullina, Zarina"]
[Result "0-1"]
[ECO "B31"]
[WhiteElo "2370"]
[BlackElo "2295"]
[Annotator "NA"]
[PlyCount "64"]
[EventDate "2019.10.18"]
[EventType "swiss"]
[EventCountry "RUS"]
[SourceTitle "playchess.com"]
[Source "ChessBase"]
[SourceQuality "1"]
[TimeControl "900+10"]

1. e4 {[%emt 0:00:00]} c5 {[%emt 0:00:00]} 2. Nf3 {[%emt 0:00:00]} Nc6 {[%emt 0:00:00]} 3. Bb5 {[%emt 0:00:00]} g6 {[%emt 0:00:00]} 4. Bxc6 {[%emt 0:00:00]} bxc6 {[%emt 0:00:00]} 5. O-O {[%emt 0:00:00]} Bg7 {[%emt 0:00:00]} 6. Re1 {[%emt 0:00:00]} Nh6 {[%emt 0:00:01]} 7. c3 {[%emt 0:00:15]} f6 {[%emt 0:00:23]} 8. d4 {[%emt 0:00:06]} Qb6 {[%emt 0:00:08]} 9. e5 {[%emt 0:01:00]} fxe5 {[%emt 0:00:18]} 10. dxc5 {[%emt 0:01:58]} Qxc5 {[%emt 0:00:18]} 11. Bxh6 {[%emt 0:00:39]} Bxh6 {[%emt 0:00:06]} 12. Rxe5 {[%emt 0:00:02]} Qb6 {[%emt 0:00:14]} 13. Qe2 {[%emt 0:00:36]} e6 {[%emt 0:00:31]} 14. Na3 {[%emt 0:00:37]} O-O {[%emt 0:01:10]} 15. Nc4 {[%emt 0:00:32]} Qc7 {[%emt 0:00:01]} 16. Ncd2 {[%emt 0:02:17]} Bf4 {[%emt 0:03:41]} 17. Re4 {[%emt 0:00:32]} d5 {[%emt 0:00:16]} 18. Ra4 {[%emt 0:00:29]} e5 {[%emt 0:00:44]} 19. g3 {[%emt 0:00:55]} Bh6 {[%emt 0:00:06]} 20. Rh4 {[%emt 0:00:56]} Bg7 {[%emt 0:00:01]} 21. Re1 {[%emt 0:00:11]} e4 {[%emt 0:00:11]} 22. Nd4 {[%emt 0:00:21]} Bf6 {[%emt 0:03:44]} 23. Rf4 {[%emt 0:00:08]} g5 {[%emt 0:00:14]} 24. Rxf6 {[%emt 0:00:11]} Rxf6 {[%emt 0:00:02]} 25. Qe3 {[%emt 0:00:21]} h6 {[%emt 0:00:35]} 26. b4 {[%emt 0:01:50]} Bg4 {[%emt 0:00:22]} 27. N2b3 {[%emt 0:01:04]} Raf8 {[%emt 0:00:09]} 28. Nc5 {[%emt 0:00:42]} Qf7 {[%emt 0:00:22]} 29. f3 Bxf3 {[%emt 0:00:11]} 30. Ncb3 {[%emt 0:02:12]} Bg4 {[%emt 0:00:59]} 31. Nd2 {[%emt 0:00:38]} Bh3 {[%emt 0:00:01]} 32. Qe2 {[%emt 0:00:40]} Rf2 {[%emt 0:00:16]} 0-1